bitfinex-derivatives/quotes_BTCF0:USTF0_20240815
["timestamp","ask_amount","ask_price","bid_price","bid_amount"]
[1723733887335,0.171,59467.0,59466.0,0.10081679]
[1723733887544,0.171,59467.0,59466.0,0.11481679]
[1723733887944,0.181,59467.0,59466.0,0.11481679]
[1723733888442,0.265076,59467.0,59466.0,0.108077]
[1723733889245,0.265076,59467.0,59466.0,0.094077]
[1723733889438,0.265076,59467.0,59466.0,0.102077]
[1723733889840,0.349152,59467.0,59466.0,0.018]
[1723733890036,0.80062322,59467.0,59466.0,0.01]
[1723733890252,0.168166,59462.0,59461.0,0.00025232]
[1723733890552,0.168166,59462.0,59443.0,0.3608]
[1723733890553,1.1715,59462.0,59443.0,0.3608]
[1723733890737,1.1715,59462.0,59446.0,0.084105]
[1723733890738,0.084107,59447.0,59446.0,0.084105]
[1723733890940,0.294107,59447.0,59446.0,0.084105]
[1723733891250,0.084108,59444.0,59443.0,0.444909]
[1723733891553,0.17,59444.0,59438.0,0.00656233]
[1723733891750,0.084113,59441.0,59440.0,0.084111]
[1723733892052,0.234113,59441.0,59440.0,0.084111]
[1723733892351,0.15,59441.0,59440.0,0.084111]
[1723733892936,0.3608,59445.0,59438.0,0.00025232]
[1723733892937,0.13428233,59445.0,59438.0,0.00025232]
[1723733893247,0.27428233,59445.0,59438.0,0.00025232]
[1723733893438,0.224107,59445.0,59439.0,0.084115]
[1723733893644,0.001,59444.0,59438.0,0.00125232]
[1723733893844,0.085112,59441.0,59440.0,0.093114]
[1723733894039,0.171,59441.0,59440.0,0.093114]
[1723733894244,0.151,59441.0,59440.0,0.093114]
[1723733894538,0.245112,59441.0,59440.0,0.009]
[1723733894943,0.245112,59441.0,59440.0,0.093114]
[1723733894944,0.151,59441.0,59440.0,0.093114]
[1723733895542,0.161,59441.0,59440.0,0.093114]
[1723733896453,0.084114,59440.0,59439.0,0.012]
[1723733896639,0.254114,59440.0,59439.0,0.012]
[1723733897248,0.254114,59440.0,59439.0,0.084115]
[1723733897443,0.17,59440.0,59439.0,0.084115]
[1723733897849,0.16,59440.0,59439.0,0.085115]
[1723733898253,0.16,59440.0,59439.0,0.089115]
[1723733898750,0.17,59440.0,59439.0,0.089115]
[1723733898955,0.254114,59440.0,59439.0,0.089115]
[1723733899348,0.30428933,59440.0,59439.0,0.089115]
[1723733899541,0.254114,59440.0,59439.0,0.005]
[1723733899749,0.338228,59440.0,59439.0,0.005]
[1723733899950,0.16823,59439.0,59430.0,0.3608]
[1723733900153,0.084124,59433.0,59432.0,0.08428638]
[1723733900352,0.284124,59433.0,59432.0,0.08428638]
[1723733900551,0.434124,59433.0,59432.0,0.08428638]
[1723733901058,0.35,59433.0,59432.0,0.08428638]
[1723733901266,0.17,59433.0,59432.0,0.08428638]
[1723733901466,0.171,59433.0,59432.0,0.08528638]
[1723733903056,0.171,59433.0,59432.0,0.09728638]
[1723733903360,0.172,59433.0,59432.0,0.09728638]
[1723733906651,0.172,59433.0,59432.0,0.26553638]
[1723733906958,0.00025232,59449.0,59448.0,0.084103]
[1723733907263,0.39025232,59449.0,59448.0,0.084103]
[1723733907968,0.00025232,59449.0,59448.0,0.529006]
[1723733908264,0.00625232,59449.0,59448.0,0.530006]
[1723733908462,0.01425232,59449.0,59448.0,0.530006]
[1723733909464,0.01425232,59449.0,59448.0,0.445903]
[1723733909655,0.01425232,59449.0,59448.0,0.45282931]
[1723733910258,0.02425232,59449.0,59448.0,0.09202931]
[1723733910754,0.01425232,59449.0,59448.0,0.09202931]
[1723733911669,0.01425232,59449.0,59448.0,0.45282931]
[1723733912171,0.01425232,59449.0,59448.0,0.62103531]
[1723733913359,0.01425232,59449.0,59448.0,0.53693231]
[1723733917164,0.15425232,59449.0,59448.0,0.53693231]
[1723733918573,0.15425232,59449.0,59448.0,0.45282931]
[1723733918763,0.15425232,59449.0,59448.0,0.53693231]
[1723733919476,0.43835332,59449.0,59448.0,0.45282931]
[1723733919768,0.52245432,59449.0,59448.0,0.001]
[1723733920073,0.168216,59444.0,59443.0,0.00025232]
[1723733920269,0.688216,59444.0,59443.0,0.00025232]
[1723733920981,0.084123,59434.0,59431.0,0.084126]
[1723733921281,0.084123,59434.0,59428.0,0.6504]
[1723733921282,0.13425648,59434.0,59428.0,0.70221046]
[1723733921572,0.05013348,59433.0,59432.0,0.08428738]
[1723733921779,0.13425748,59433.0,59432.0,0.08428738]
[1723733922071,0.13425748,59433.0,59432.0,0.09145665]
[1723733922470,0.084124,59433.0,59432.0,0.09245665]
[1723733922977,0.105124,59433.0,59432.0,0.09245665]
[1723733923867,0.106124,59433.0,59432.0,0.10445665]
[1723733924566,0.086124,59433.0,59432.0,0.10445665]
[1723733925271,0.002,59433.0,59432.0,0.10445665]
[1723733925572,0.05013348,59445.0,59435.0,0.084121]
[1723733925764,0.084111,59442.0,59441.0,0.3608]
[1723733926077,0.094111,59442.0,59441.0,0.444912]
[1723733926373,0.094111,59442.0,59441.0,0.3608]
[1723733928166,0.094111,59442.0,59441.0,0.444912]
[1723733928364,0.01,59442.0,59441.0,0.444912]
[1723733928573,0.01,59442.0,59441.0,0.084112]
[1723733928871,0.01,59442.0,59441.0,0.086112]
[1723733929378,0.001,59445.0,59442.0,0.084111]
[1723733929572,0.011,59445.0,59444.0,0.084108]
[1723733929869,0.01,59445.0,59444.0,0.084108]
[1723733930868,0.01,59445.0,59444.0,0.087108]
[1723733932174,0.05013348,59460.0,59459.0,0.084087]
[1723733932382,0.05,59460.0,59459.0,0.084087]
[1723733932675,0.084087,59459.0,59458.0,0.36248]
[1723733932875,0.384087,59459.0,59458.0,0.3608]
[1723733933476,0.468174,59459.0,59458.0,0.3608]
[1723733933971,0.384087,59459.0,59458.0,0.3608]
[1723733934171,0.395087,59459.0,59458.0,0.3618]
[1723733934673,0.395087,59459.0,59458.0,0.445888]
[1723733934978,0.095087,59459.0,59458.0,0.45277761]
[1723733935164,0.011,59459.0,59458.0,0.45277761]
[1723733935567,0.14522048,59459.0,59458.0,0.45277761]
[1723733935874,0.109087,59459.0,59458.0,0.45277761]
[1723733936180,0.15922048,59459.0,59458.0,0.45277761]
[1723733937966,0.109087,59459.0,59458.0,0.45277761]
[1723733938570,0.109087,59459.0,59452.0,0.374896]
[1723733938571,1.253647,59459.0,59451.0,0.05024229]
[1723733938776,0.084105,59446.0,59445.0,0.3608]
[1723733939880,0.084105,59446.0,59445.0,0.36783009]
[1723733940382,0.084105,59446.0,59445.0,0.00703009]
[1723733940687,0.084108,59444.0,59443.0,0.084109]
[1723733941386,0.05012059,59446.0,59443.0,1.19548]
[1723733941572,0.05018857,59468.0,59450.0,0.3608]
[1723733941776,0.05018857,59476.0,59467.0,1.0124]
[1723733942076,0.1415,59477.0,59473.0,0.3608]
[1723733942276,0.084066,59474.0,59473.0,0.3608]
[1723733942476,0.1415,59477.0,59473.0,0.3608]
[1723733943378,0.084063,59476.0,59473.0,0.3618]
[1723733943581,0.1415,59477.0,59473.0,0.3648]
[1723733943977,0.084066,59474.0,59473.0,0.3648]
[1723733944684,0.084066,59474.0,59473.0,0.37200083]
[1723733945076,0.084066,59474.0,59473.0,0.37300083]
[1723733945581,0.1415,59477.0,59474.0,0.084066]
[1723733946494,0.084064,59476.0,59474.0,0.084066]
[1723733946986,0.084064,59476.0,59474.0,0.087066]
[1723733948182,0.084064,59476.0,59475.0,0.084064]
[1723733948681,0.1415,59477.0,59476.0,0.084063]
[1723733948876,0.00025232,59479.0,59478.0,0.08406]
[1723733949083,0.08431132,59479.0,59478.0,0.44486]
[1723733949281,0.08431132,59479.0,59478.0,0.3608]
[1723733949883,0.08431132,59479.0,59478.0,0.44486]
[1723733950581,0.08431132,59479.0,59478.0,0.3628]
[1723733951978,0.22431132,59479.0,59478.0,0.3628]
[1723733952180,0.00025232,59479.0,59478.0,0.89422]
[1723733952385,0.08404,59493.0,59479.0,0.084058]
[1723733952386,0.00695485,59492.0,59479.0,0.084058]
[1723733952580,0.43,59492.0,59487.0,0.3608]
[1723733952988,0.084046,59488.0,59487.0,0.3608]
[1723733953291,0.294046,59488.0,59487.0,0.3608]
[1723733953990,0.294046,59488.0,59487.0,0.3638]
[1723733954188,0.378092,59488.0,59487.0,0.3638]
[1723733954983,0.294046,59488.0,59487.0,0.3638]
[1723733955380,0.294046,59488.0,59487.0,0.447847]
[1723733956089,0.296046,59488.0,59487.0,0.447847]
[1723733956386,0.212,59488.0,59487.0,0.447847]
[1723733956592,0.21,59488.0,59487.0,0.448847]
[1723733956995,0.05,59488.0,59487.0,0.532894]
[1723733957182,0.00025232,59493.0,59492.0,0.08404]
[1723733957383,0.47025232,59493.0,59492.0,0.44484]
[1723733957593,0.55429132,59493.0,59492.0,0.44484]
[1723733957786,0.55429132,59493.0,59492.0,0.3608]
[1723733957995,0.63833032,59493.0,59492.0,0.3608]
[1723733958692,0.084043,59490.0,59489.0,0.084044]
[1723733958893,0.654043,59490.0,59489.0,0.084044]
[1723733959891,0.656043,59490.0,59489.0,0.084044]
[1723733961701,0.084046,59488.0,59487.0,0.3608]
[1723733961996,0.574046,59488.0,59487.0,0.444847]
[1723733962991,0.575046,59488.0,59487.0,0.444847]
[1723733963585,0.575046,59488.0,59487.0,0.446847]
[1723733964796,0.491,59488.0,59487.0,0.446847]
[1723733965094,0.491,59488.0,59487.0,0.737447]
[1723733965294,0.49,59488.0,59487.0,0.819494]
[1723733965495,0.49,59488.0,59487.0,0.821494]
[1723733966089,0.49,59488.0,59487.0,0.819494]
[1723733966297,0.49,59488.0,59487.0,0.822494]
[1723733966489,0.49,59488.0,59487.0,0.823494]
[1723733967187,0.33,59488.0,59487.0,0.823494]
[1723733967386,0.00830661,59510.0,59487.0,0.823494]
[1723733967387,0.1448,59509.0,59487.0,0.6554]
[1723733967691,0.20689726,59506.0,59505.0,0.084022]
[1723733968195,0.00104001,59514.0,59505.0,0.084022]
[1723733968391,0.37104001,59514.0,59513.0,0.084011]
[1723733968587,0.37,59514.0,59513.0,0.084011]
[1723733969204,0.2,59514.0,59513.0,0.084011]
[1723733969691,0.021,59514.0,59513.0,0.084011]
[1723733970494,0.021,59514.0,59509.0,0.00575296]
[1723733970495,0.16803,59510.0,59509.0,0.00575296]
[1723733970690,0.25206,59506.0,59505.0,0.001]
[1723733970891,1.06804,59506.0,59505.0,0.001]
[1723733971092,0.66804,59506.0,59505.0,0.001]
[1723733971788,0.58969534,59506.0,59504.0,0.00025208]
[1723733971992,0.168044,59505.0,59504.0,0.00025208]
[1723733972299,0.648044,59505.0,59504.0,0.00025208]
[1723733973197,0.71487523,59505.0,59504.0,0.00025208]
[1723733973591,0.72187523,59505.0,59504.0,0.00125208]
[1723733974090,0.87617523,59505.0,59504.0,0.00125208]
[1723733975201,0.809344,59505.0,59504.0,0.00125208]
[1723733978092,0.893366,59505.0,59504.0,0.00125208]
[1723733980402,1.47690504,59505.0,59504.0,0.00125208]
[1723733981499,1.42061005,59505.0,59504.0,0.00125208]
[1723733981699,1.42061009,59505.0,59504.0,0.00125208]
[1723733982913,0.084049,59486.0,59469.0,0.10014118]
[1723733983210,0.084049,59486.0,59462.0,0.084082]
[1723733983211,0.3608,59436.0,59417.0,0.12397996]
[1723733983410,0.78861826,59418.0,59411.0,0.05029773]
[1723733983596,0.78861826,59418.0,59392.0,0.3608]
[1723733983597,0.3608,59418.0,59412.0,0.086233]
[1723733983895,0.3608,59413.0,59407.0,0.3637]
[1723733984101,0.3608,59408.0,59407.0,0.3637]
[1723733984401,0.3608,59408.0,59407.0,0.5991]
[1723733984604,0.3608,59408.0,59407.0,1.1041]
[1723733984908,0.3608,59408.0,59407.0,1.5041]
[1723733986413,0.3608,59434.0,59432.0,0.084125]
[1723733986706,0.3608,59434.0,59429.0,0.3637]
[1723733986894,0.3608,59434.0,59431.0,0.084126]
[1723733987096,0.3608,59434.0,59432.0,0.084125]
[1723733987705,0.3608,59434.0,59423.0,0.3637]
[1723733987906,0.084135,59426.0,59420.0,0.084142]
[1723733988299,0.3608,59427.0,59423.0,0.00025231]
[1723733988499,0.7216,59427.0,59423.0,0.00025231]
[1723733989209,0.002,59426.0,59423.0,0.00025231]
[1723733989413,0.002,59426.0,59423.0,0.36395231]
[1723733989706,0.002,59426.0,59425.0,0.084135]
[1723733989917,0.00304001,59427.0,59426.0,0.084134]
[1723733990206,0.002,59427.0,59423.0,0.36395231]
[1723733990401,0.3608,59424.0,59423.0,0.36395231]
[1723733990606,0.3608,59424.0,59423.0,0.44809031]
[1723733990796,0.002,59426.0,59423.0,1.62959231]
[1723733991001,0.002,59426.0,59425.0,0.084135]
[1723733991310,0.002,59426.0,59425.0,0.988975]
[1723733991731,0.3608,59435.0,59434.0,0.084122]
[1723733991909,0.00025231,59439.0,59437.0,0.084117]
[1723733992111,0.00025231,59439.0,59438.0,0.084117]
[1723733992303,0.00025231,59439.0,59434.0,0.447822]
[1723733992504,0.084121,59435.0,59431.0,0.3608]
[1723733993008,0.084121,59436.0,59433.0,0.084123]
[1723733993210,0.00025231,59439.0,59435.0,0.08412]
[1723733993406,0.08536731,59439.0,59438.0,0.004]
[1723733993607,0.08536731,59439.0,59438.0,0.00116492]
[1723733993802,0.5028,59456.0,59438.0,0.36196492]
[1723733994009,0.4008,59456.0,59450.0,0.084098]
[1723733994215,0.5708,59456.0,59450.0,0.084098]
[1723733994417,0.084096,59453.0,59450.0,0.084098]
[1723733994611,0.0841,59450.0,59447.0,0.3608]
[1723733994802,0.084102,59448.0,59446.0,0.447804]
[1723733995005,0.16,59448.0,59447.0,0.084104]
[1723733996214,0.161,59448.0,59447.0,0.084104]
[1723733996510,0.201,59448.0,59447.0,0.084104]
[1723733997104,0.001,59448.0,59447.0,0.084104]
[1723733997316,0.001,59448.0,59447.0,0.086104]
[1723733997909,0.08434631,59454.0,59453.0,0.084095]
[1723733998218,0.14025231,59454.0,59453.0,0.084095]
[1723733998413,0.17025231,59454.0,59453.0,0.084095]
[1723733998605,0.17025231,59454.0,59447.0,0.006]
[1723733998807,0.17025231,59454.0,59450.0,0.084098]
[1723733999001,0.17025231,59454.0,59447.0,0.006]
[1723733999202,0.14025231,59454.0,59447.0,0.006]
[1723733999409,0.22434631,59454.0,59447.0,0.006]
[1723733999702,0.23734631,59454.0,59447.0,0.002]
[1723734000214,0.14325231,59454.0,59453.0,0.447795]
[1723734000714,0.24734631,59454.0,59453.0,0.447795]
[1723734000921,0.16325231,59454.0,59453.0,0.447795]
[1723734001217,0.14025231,59454.0,59453.0,0.447795]
[1723734001406,0.25434631,59454.0,59453.0,0.447795]
[1723734002015,0.14025231,59454.0,59453.0,0.447795]
[1723734002313,0.14025231,59454.0,59453.0,0.445295]
[1723734002314,0.14325231,59454.0,59453.0,0.445295]
[1723734003016,0.324,59470.0,59465.0,0.084078]
[1723734003309,0.3608,59475.0,59465.0,0.7245]
[1723734003513,0.084069,59472.0,59465.0,0.7245]
[1723734003712,0.7908,59475.0,59474.0,0.084066]
[1723734003903,0.5118,59475.0,59474.0,0.084066]
[1723734004110,0.15,59475.0,59474.0,0.084066]
[1723734004404,0.18,59475.0,59474.0,0.084066]
[1723734004614,0.17,59475.0,59474.0,0.084066]
[1723734005514,0.1675,59475.0,59474.0,0.084066]
[1723734005910,0.084063,59477.0,59476.0,0.084063]
[1723734006111,0.104063,59477.0,59476.0,0.444863]
[1723734006517,0.358125,59477.0,59476.0,0.3608]
[1723734007018,0.358125,59477.0,59474.0,0.014]
[1723734007019,0.274062,59477.0,59474.0,0.014]
[1723734007208,0.084071,59470.0,59469.0,0.00025231]
[1723734007514,0.664871,59470.0,59469.0,0.00025231]
[1723734007704,0.22,59470.0,59469.0,0.08432531]
[1723734007906,0.134071,59470.0,59469.0,0.00025231]
[1723734008112,0.748942,59470.0,59469.0,0.00025231]
[1723734008522,0.664871,59470.0,59469.0,0.00025231]
[1723734009417,0.750942,59470.0,59469.0,0.00025231]
[1723734009621,1.655422,59470.0,59460.0,0.23556]
[1723734009820,0.16817,59460.0,59459.0,0.36212]
[1723734010122,0.19,59460.0,59459.0,0.3608]
[1723734010711,0.274085,59460.0,59459.0,0.3608]
[1723734010908,0.19,59460.0,59459.0,0.444887]
[1723734011723,0.274085,59460.0,59459.0,0.444887]
[1723734011921,0.35817,59460.0,59459.0,0.3608]
[1723734012116,0.35917,59460.0,59459.0,0.3608]
[1723734012311,0.275085,59460.0,59459.0,0.3608]
[1723734012718,0.00025231,59465.0,59459.0,1.26536]
[1723734013019,0.00025231,59465.0,59464.0,0.7245]
[1723734013219,0.00025231,59465.0,59464.0,0.44778]
[1723734013427,0.00025231,59465.0,59464.0,0.3637]
[1723734013627,0.09433031,59465.0,59464.0,0.44778]
[1723734013823,0.08433031,59465.0,59464.0,0.80858]
[1723734014413,0.00025231,59465.0,59464.0,0.81437304]
[1723734014624,0.00025231,59465.0,59464.0,1.80297304]
[1723734014818,0.04969648,59473.0,59464.0,1.71889304]
[1723734015019,0.084076,59467.0,59466.0,0.084077]
[1723734015220,0.094076,59467.0,59466.0,0.084077]
[1723734015830,0.084078,59465.0,59464.0,0.3647]
[1723734016020,0.482234,59465.0,59464.0,0.001]
[1723734016328,0.55149598,59465.0,59464.0,0.001]
[1723734016530,0.485234,59465.0,59464.0,0.001]
[1723734016726,0.485234,59465.0,59460.0,0.134085]
[1723734016727,0.084084,59461.0,59460.0,0.134085]
[1723734016922,0.374084,59461.0,59460.0,0.05]
[1723734017635,0.374084,59461.0,59460.0,0.134085]
[1723734018620,0.374084,59461.0,59460.0,0.135085]
[1723734018828,0.05009806,59461.0,59460.0,0.135085]
[1723734019131,0.084078,59466.0,59461.0,0.084084]
[1723734019132,0.05009777,59462.0,59461.0,0.084084]
[1723734019428,0.06673958,59464.0,59463.0,0.084081]
[1723734019631,0.16,59464.0,59463.0,0.444881]
[1723734020330,0.06673958,59467.0,59463.0,0.808581]
[1723734020533,0.084072,59470.0,59469.0,0.084073]
[1723734020732,0.084077,59467.0,59466.0,0.084076]
[1723734021032,0.00025231,59472.0,59471.0,0.08407]
[1723734021226,0.00025231,59472.0,59471.0,0.44777]
[1723734022528,0.00525231,59472.0,59471.0,0.44777]
[1723734022721,0.00525231,59472.0,59471.0,0.45335878]
[1723734023327,0.01325231,59472.0,59471.0,0.45335878]
[1723734023533,0.09607978,59472.0,59471.0,0.45335878]
[1723734024231,0.01325231,59472.0,59471.0,0.45335878]
[1723734024634,0.09607978,59472.0,59471.0,0.45335878]
[1723734025524,0.04050528,59472.0,59471.0,0.45335878]
[1723734025725,0.09698407,59472.0,59471.0,0.45335878]
[1723734025924,0.040505,59472.0,59471.0,0.45335878]
[1723734026125,0.01325231,59472.0,59471.0,0.45335878]
[1723734026431,0.01325231,59472.0,59468.0,0.3608]
[1723734026432,0.084073,59469.0,59468.0,0.3608]
[1723734026623,0.16816,59464.0,59463.0,0.3608]
[1723734026940,0.16816,59464.0,59457.0,0.084089]
[1723734026941,0.084084,59461.0,59457.0,0.084089]
[1723734027234,0.22459788,59461.0,59458.0,0.084088]
[1723734027440,0.1513373,59461.0,59458.0,0.084088]
[1723734028031,0.1513373,59461.0,59459.0,0.084087]
[1723734028232,0.084086,59460.0,59459.0,0.08360957]
[1723734028435,0.1513393,59460.0,59459.0,0.08360957]
[1723734029035,0.0672533,59460.0,59453.0,0.23552]
[1723734029242,0.0672533,59460.0,59438.0,0.04962926]
[1723734029243,0.084099,59451.0,59440.0,0.3608]
[1723734029430,0.08378533,59448.0,59445.0,0.00455994]
[1723734029735,0.264103,59448.0,59445.0,0.00455994]
[1723734030036,0.29136615,59448.0,59445.0,0.00455994]
[1723734030239,0.34785427,59448.0,59445.0,0.00455994]
[1723734030440,0.02726409,59448.0,59445.0,0.00455994]
[1723734030638,0.08375747,59449.0,59448.0,0.084103]
[1723734030942,0.08375988,59450.0,59449.0,0.084102]
[1723734031236,0.08375988,59450.0,59448.0,0.3637]
[1723734031421,0.02726333,59449.0,59447.0,0.3618]
[1723734031625,0.08374073,59448.0,59447.0,0.3618]
[1723734031838,0.264103,59448.0,59447.0,0.3618]
[1723734032137,0.34783086,59448.0,59447.0,0.3638]
[1723734032333,0.16783086,59448.0,59447.0,0.447904]
[1723734032536,0.16783086,59448.0,59447.0,0.087104]
[1723734032727,0.12136714,59448.0,59447.0,0.087104]
[1723734033134,0.084103,59448.0,59447.0,0.087104]
[1723734033333,0.084106,59446.0,59445.0,0.00455994]
[1723734033537,0.254106,59446.0,59445.0,0.084107]
[1723734033731,0.084106,59446.0,59445.0,0.084107]
[1723734033931,0.1678393,59446.0,59445.0,0.084107]
[1723734034135,0.0837333,59447.0,59446.0,0.084106]
[1723734034338,0.1688363,59448.0,59447.0,0.085104]
[1723734034544,0.235103,59448.0,59447.0,0.085104]
[1723734034845,0.3088363,59448.0,59447.0,0.085104]
[1723734035031,0.3078363,59448.0,59447.0,0.087104]
[1723734035427,0.69590226,59448.0,59447.0,0.087104]
[1723734035741,0.36547196,59448.0,59447.0,0.003]
[1723734037129,0.36647196,59448.0,59447.0,0.004]
[1723734037725,0.36647196,59448.0,59447.0,0.088104]
[1723734037926,0.28236896,59448.0,59447.0,0.088104]
[1723734038739,0.33880481,59448.0,59447.0,0.088104]
[1723734038945,0.255103,59448.0,59447.0,0.088104]
[1723734039530,0.33880481,59448.0,59447.0,0.088104]
[1723734039940,0.255103,59448.0,59447.0,0.088104]
[1723734040137,0.3387947,59448.0,59447.0,0.004]
[1723734040335,0.084115,59440.0,59435.0,0.3608]
[1723734040534,0.15107584,59437.0,59436.0,0.08412]
[1723734040735,0.25412,59437.0,59436.0,0.08412]
[1723734041143,0.32105294,59437.0,59436.0,0.08412]
[1723734041346,0.61492,59437.0,59436.0,0.08412]
[1723734041744,0.62492,59437.0,59436.0,0.08412]
[1723734042043,0.25236,59436.0,59435.0,0.001]
[1723734042244,0.74236,59436.0,59435.0,0.001]
[1723734043445,0.168242,59435.0,59431.0,0.08437931]
[1723734043646,0.628242,59435.0,59431.0,0.08437931]
[1723734044143,0.628242,59435.0,59432.0,0.084125]
[1723734044442,0.628242,59435.0,59431.0,0.00025231]
[1723734044443,0.084126,59432.0,59431.0,0.00025231]
[1723734044644,0.35097688,59432.0,59431.0,0.00025231]
[1723734044946,0.35097688,59432.0,59431.0,0.08437931]
[1723734045144,0.284126,59432.0,59431.0,0.08437931]
[1723734046144,0.35096906,59432.0,59431.0,0.08437931]
[1723734046351,0.35196906,59432.0,59431.0,0.08437931]
[1723734047150,0.285126,59432.0,59431.0,0.08437931]
[1723734047646,0.286126,59432.0,59431.0,0.08437931]
[1723734048043,0.286126,59432.0,59431.0,0.00025231]
[1723734048539,0.370252,59432.0,59431.0,0.00025231]
[1723734049950,0.286126,59432.0,59431.0,0.08437931]
[1723734050842,0.202,59432.0,59431.0,0.08437931]
[1723734052354,0.25210597,59432.0,59431.0,0.08437931]
[1723734052543,0.33623197,59432.0,59431.0,0.08437931]
[1723734052740,0.286126,59432.0,59431.0,0.08437931]
[1723734053451,0.202,59432.0,59431.0,0.08437931]
[1723734053844,0.286126,59432.0,59431.0,0.08437931]
[1723734055256,0.35303148,59432.0,59431.0,0.08437931]
[1723734056253,0.286126,59432.0,59431.0,0.08437931]
[1723734056851,0.06700066,59436.0,59431.0,0.90505231]
[1723734057059,0.01778011,59440.0,59439.0,0.084116]
[1723734057247,0.01778011,59440.0,59439.0,0.168232]
[1723734057248,0.00025231,59440.0,59439.0,0.168232]
[1723734057451,0.05025926,59441.0,59440.0,0.084114]
[1723734057854,0.05025926,59441.0,59440.0,0.168228]
[1723734058151,0.0836948,59449.0,59439.0,0.084115]
[1723734058353,0.50378127,59449.0,59448.0,0.3608]
[1723734058853,0.44726362,59449.0,59442.0,0.7245]
[1723734059054,0.08378244,59447.0,59446.0,0.084106]
[1723734059263,0.31378244,59447.0,59446.0,0.084106]
[1723734060662,0.31378244,59447.0,59446.0,0.08866542]
[1723734060856,0.23,59447.0,59446.0,0.08866542]
[1723734061056,0.231,59447.0,59446.0,0.085106]
[1723734061259,0.31480557,59447.0,59446.0,0.085106]
[1723734061462,0.231,59447.0,59446.0,0.085106]
[1723734061760,0.00025231,59450.0,59449.0,0.084102]
[1723734062069,0.00025231,59450.0,59449.0,1.126406]
[1723734062251,0.1441,59460.0,59452.0,0.084097]
[1723734062452,0.08377067,59459.0,59458.0,0.084089]
[1723734062956,0.104087,59459.0,59458.0,0.084089]
[1723734063166,0.18785714,59459.0,59458.0,0.084089]
[1723734063366,0.16785714,59459.0,59458.0,0.084089]
[1723734063661,0.16785714,59459.0,59456.0,0.3608]
[1723734063862,0.17585714,59459.0,59456.0,0.3608]
[1723734064060,0.084089,59458.0,59456.0,0.3608]
[1723734064448,0.008,59459.0,59457.0,0.08409]
[1723734064647,0.038,59459.0,59457.0,0.08409]
[1723734065156,0.084089,59458.0,59457.0,0.08409]
[1723734065364,0.084089,59458.0,59456.0,0.3653361]
[1723734065365,0.08409,59457.0,59456.0,0.3653361]
[1723734066566,0.08909,59457.0,59456.0,0.3653361]
[1723734067156,0.09909,59457.0,59456.0,0.4494281]
[1723734067558,0.24709,59457.0,59456.0,0.4494281]
[1723734067956,0.24709,59457.0,59456.0,0.7401281]
[1723734068752,0.24709,59457.0,59456.0,0.6560361]
[1723734069955,0.24709,59457.0,59456.0,0.7401281]
[1723734070365,0.23709,59457.0,59456.0,0.7401281]
[1723734070565,0.153,59457.0,59456.0,0.8242201]
[1723734070769,0.00025231,59464.0,59463.0,0.084082]
[1723734071063,0.00025231,59464.0,59463.0,0.903746]
[1723734071261,0.084068,59474.0,59465.0,0.084079]
[1723734071262,0.05015228,59466.0,59465.0,0.084079]
[1723734071463,0.05015228,59467.0,59466.0,0.084078]
[1723734071653,0.084069,59472.0,59471.0,0.08407]
[1723734071858,0.324069,59472.0,59471.0,0.08407]
[1723734073158,0.329069,59472.0,59471.0,0.08407]
[1723734074065,0.252,59472.0,59471.0,0.08507]
[1723734074275,0.092,59472.0,59471.0,0.08507]
[1723734074569,0.06208507,59472.0,59471.0,0.53458921]
[1723734074764,0.012,59472.0,59471.0,0.53458921]
[1723734074965,0.192,59472.0,59471.0,0.45051921]
[1723734076066,0.182,59472.0,59471.0,0.45051921]
[1723734076771,0.202,59472.0,59471.0,0.45051921]
[1723734077457,0.182,59472.0,59471.0,0.45051921]
[1723734077771,0.012,59472.0,59471.0,0.45051921]
[1723734078669,0.07208507,59472.0,59471.0,0.45051921]
[1723734078872,0.266069,59472.0,59471.0,0.001]
[1723734080267,0.256069,59472.0,59471.0,0.08507]
[1723734080762,0.276069,59472.0,59471.0,0.08507]
[1723734081568,0.360138,59472.0,59471.0,0.08507]
[1723734082163,0.276069,59472.0,59471.0,0.08507]
[1723734086276,0.21925407,59472.0,59471.0,0.08507]
[1723734086461,0.192,59472.0,59471.0,0.16914]
[1723734088681,0.276069,59472.0,59471.0,0.08507]
[1723734088863,0.30332295,59472.0,59471.0,0.08507]
[1723734090977,0.38739195,59472.0,59471.0,0.08507]
[1723734091165,0.30332295,59472.0,59471.0,0.08507]
[1723734092072,0.38739195,59472.0,59471.0,0.08507]
[1723734092466,0.57198866,59472.0,59471.0,0.001]
[1723734092671,0.57198866,59472.0,59460.0,0.3634]
[1723734092672,0.084096,59453.0,59452.0,0.3608]
[1723734092984,0.084096,59453.0,59441.0,0.06672513]
[1723734092985,0.57806106,59453.0,59440.0,0.00132]
[1723734093174,0.57806106,59453.0,59439.0,0.59628]
[1723734093175,0.08389867,59443.0,59442.0,0.084111]
[1723734093366,0.16800467,59446.0,59441.0,0.3608]
[1723734093573,0.16800467,59446.0,59445.0,0.084107]
[1723734094068,0.094106,59446.0,59445.0,0.084107]
[1723734094270,0.17790805,59446.0,59445.0,0.084107]
[1723734094781,0.16790805,59446.0,59445.0,0.089107]
[1723734095182,0.084106,59446.0,59445.0,0.089107]
[1723734095970,0.084106,59446.0,59445.0,0.09418641]
[1723734096571,0.094106,59446.0,59445.0,0.09418641]
[1723734096972,0.094106,59446.0,59445.0,0.094107]
[1723734097174,0.095106,59446.0,59445.0,0.094107]
[1723734097785,0.085106,59446.0,59445.0,0.094107]
[1723734098290,0.00025231,59449.0,59445.0,0.598787]
[1723734098477,0.05020777,59449.0,59448.0,0.3608]
[1723734098677,0.05020678,59452.0,59448.0,0.879803]
[1723734098877,0.3608,59458.0,59448.0,0.879803]